bitfinex-derivatives/quotes_BTCF0:USTF0_20240902
["timestamp","ask_amount","ask_price","bid_price","bid_amount"]
[1725267272014,0.36822671,58214.0,58213.0,0.0014]
[1725267272218,1.48358671,58214.0,58213.0,0.0014]
[1725267272518,1.48358671,58214.0,58208.0,0.00025753]
[1725267272716,0.5008,58209.0,58208.0,0.00025753]
[1725267272912,0.5012,58209.0,58208.0,0.00025753]
[1725267273807,0.5012,58209.0,58208.0,0.00125753]
[1725267274622,0.5042,58209.0,58208.0,0.00125753]
[1725267276721,0.5012,58209.0,58208.0,0.00125753]
[1725267277023,0.5062,58209.0,58208.0,0.00125753]
[1725267279918,0.5052,58209.0,58208.0,0.00125753]
[1725267291524,0.5052,58209.0,58208.0,0.00025753]
[1725267291730,0.5052,58209.0,58208.0,0.00125753]
[1725267295030,0.5012,58209.0,58208.0,0.00025753]
[1725267295333,0.5052,58209.0,58208.0,0.00125753]
[1725267295723,0.1444,58209.0,58208.0,0.00125753]
[1725267296032,0.5052,58209.0,58208.0,0.00125753]
[1725267298129,0.5052,58209.0,58208.0,0.13655753]
[1725267298734,0.5052,58209.0,58208.0,0.19668953]
[1725267299820,0.5052,58209.0,58208.0,0.06138953]
[1725267300240,0.5052,58209.0,58208.0,0.00125753]
[1725267300735,0.3652,58209.0,58208.0,0.00125753]
[1725267300924,0.3652,58209.0,58201.0,0.134]
[1725267301231,0.3652,58209.0,58200.0,0.06682977]
[1725267301232,0.3608,58203.0,58200.0,0.06682977]
[1725267301532,0.3602,58203.0,58200.0,0.06682977]
[1725267301727,0.3602,58203.0,58199.0,0.06014]
[1725267301926,0.14,58200.0,58199.0,0.06014]
[1725267302332,0.139,58200.0,58199.0,0.06014]
[1725267304035,0.139,58200.0,58199.0,0.06114]
[1725267304444,0.139,58200.0,58193.0,0.1378]
[1725267304445,0.48109,58195.0,58184.0,0.08420691]
[1725267304633,0.6408,58185.0,58169.0,0.08424798]
[1725267304842,0.14,58170.0,58164.0,0.08424798]
[1725267305034,0.14,58170.0,58158.0,0.06745127]
[1725267305035,0.5008,58165.0,58158.0,0.06745127]
[1725267305329,0.5008,58165.0,58155.0,0.1286]
[1725267305330,0.5008,58159.0,58155.0,0.1286]
[1725267307038,0.4998,58159.0,58155.0,0.1286]
[1725267307735,0.014,58159.0,58158.0,0.3608]
[1725267308328,0.01847596,58159.0,58158.0,0.3608]
[1725267309239,0.01887596,58159.0,58158.0,0.3608]
[1725267310850,0.01887596,58159.0,58158.0,0.87664]
[1725267311242,0.01887596,58159.0,58158.0,0.3608]
[1725267311940,0.01887596,58159.0,58158.0,0.87664]
[1725267312142,0.01887596,58159.0,58158.0,0.3608]
[1725267312444,0.01887596,58159.0,58158.0,0.6008]
[1725267314538,0.00487596,58159.0,58158.0,0.6008]
[1725267314746,0.01887596,58159.0,58158.0,0.6008]
[1725267315139,0.00487596,58159.0,58158.0,0.6008]
[1725267315341,0.01887596,58159.0,58158.0,0.6008]
[1725267316843,0.01887596,58159.0,58158.0,0.3608]
[1725267317750,0.00487596,58159.0,58158.0,0.3608]
[1725267317946,0.01887596,58159.0,58158.0,0.3608]
[1725267318342,0.15887596,58159.0,58158.0,0.3608]
[1725267319254,0.57985796,58159.0,58151.0,0.36105776]
[1725267319554,0.57945796,58159.0,58152.0,0.1352]
[1725267319746,0.57945796,58159.0,58153.0,0.24]
[1725267320057,0.15847596,58159.0,58154.0,0.060187]
[1725267320354,0.14447596,58159.0,58154.0,0.060187]
[1725267320548,0.15847596,58159.0,58154.0,0.060187]
[1725267320955,0.14447596,58159.0,58154.0,0.037187]
[1725267321754,0.14447596,58159.0,58155.0,0.060186]
[1725267321950,0.00447596,58159.0,58157.0,0.060184]
[1725267322151,0.14025776,58163.0,58157.0,0.060184]
[1725267322348,0.14025776,58163.0,58162.0,0.0004]
[1725267324355,0.1446557,58163.0,58162.0,0.0004]
[1725267325956,0.0046557,58163.0,58162.0,0.0004]
[1725267328754,0.09954461,58163.0,58162.0,0.0004]
[1725267330260,0.23954461,58163.0,58162.0,0.0004]
[1725267330460,0.19743599,58163.0,58162.0,0.0004]
[1725267330652,0.23954495,58163.0,58162.0,0.0004]
[1725267330852,0.19743599,58163.0,58162.0,0.0004]
[1725267331550,0.23954485,58163.0,58162.0,0.0004]
[1725267331752,0.19743599,58163.0,58162.0,0.0004]
[1725267332753,0.23954475,58163.0,58162.0,0.0004]
[1725267333150,0.19743599,58163.0,58162.0,0.0004]
[1725267333351,0.23954496,58163.0,58162.0,0.0004]
[1725267333555,0.30121832,58163.0,58162.0,0.0004]
[1725267333860,0.23954496,58163.0,58162.0,0.0004]
[1725267334053,0.30121832,58163.0,58162.0,0.0004]
[1725267334259,0.23954496,58163.0,58162.0,0.0004]
[1725267334459,0.30121832,58163.0,58162.0,0.0004]
[1725267334764,0.25910955,58163.0,58162.0,0.0004]
[1725267335755,0.30121862,58163.0,58162.0,0.0004]
[1725267336759,0.1446557,58163.0,58162.0,0.0004]
[1725267337853,0.5054557,58163.0,58162.0,0.0004]
[1725267338946,0.5656337,58163.0,58162.0,0.0004]
[1725267340160,0.060179,58162.0,58151.0,0.00025776]
[1725267340359,0.14,58156.0,58153.0,0.060188]
[1725267342257,0.3654557,58163.0,58151.0,0.00025776]
[1725267342460,0.3654557,58163.0,58155.0,0.3608]
[1725267343460,0.3654557,58163.0,58159.0,0.060182]
[1725267343662,0.09489049,58162.0,58159.0,0.060182]
[1725267344863,0.09489049,58162.0,58160.0,0.060181]
[1725267345064,0.09489049,58162.0,58161.0,0.06018]
[1725267346265,0.23127132,58162.0,58161.0,0.06018]
[1725267346766,0.28405249,58162.0,58161.0,0.06018]
[1725267347163,0.28404785,58162.0,58161.0,0.06018]
[1725267348063,0.09488585,58162.0,58161.0,0.06018]
[1725267348960,0.09488585,58162.0,58161.0,0.19928]
[1725267351758,0.0046557,58163.0,58162.0,0.060179]
[1725267352067,0.0046557,58163.0,58162.0,0.194879]
[1725267352270,0.0046557,58163.0,58162.0,0.195279]
[1725267358891,0.05743189,58163.0,58162.0,0.195279]
[1725267359774,0.05743208,58163.0,58162.0,0.195279]
[1725267360381,0.13743208,58163.0,58162.0,0.195279]
[1725267360774,0.1374331,58163.0,58162.0,0.195279]
[1725267361584,0.1374331,58163.0,58162.0,0.0004]
[1725267362185,0.19910167,58163.0,58162.0,0.0004]
[1725267366581,0.11910167,58163.0,58162.0,0.0004]
[1725267366787,0.0046557,58163.0,58162.0,0.0004]
[1725267367690,0.0046557,58163.0,58162.0,0.060579]
[1725267374385,0.0846557,58163.0,58162.0,0.060579]
[1725267375084,0.0846557,58163.0,58162.0,0.0004]
[1725267375287,0.2209557,58163.0,58162.0,0.0004]
[1725267380896,0.0846557,58163.0,58162.0,0.0004]
[1725267381188,0.0046557,58163.0,58162.0,0.060579]
[1725267381893,0.05743549,58163.0,58162.0,0.060579]
[1725267382489,0.13743549,58163.0,58162.0,0.060579]
[1725267383495,0.13743681,58163.0,58162.0,0.0004]
[1725267384990,0.13743681,58163.0,58151.0,0.00025776]
[1725267384991,1.25323681,58163.0,58151.0,0.00025776]
[1725267385200,0.4408,58152.0,58151.0,0.00025776]
[1725267385391,0.49398111,58152.0,58151.0,0.00025776]
[1725267387990,0.49841513,58152.0,58151.0,0.00025776]
[1725267388907,0.44562391,58152.0,58151.0,0.00025776]
[1725267390397,0.44562391,58152.0,58151.0,0.06044876]
[1725267390398,0.00482391,58152.0,58151.0,0.06044876]
[1725267390896,0.08482391,58152.0,58151.0,0.06044876]
[1725267397003,0.13761424,58152.0,58151.0,0.06044876]
[1725267397406,0.13761399,58152.0,58151.0,0.06044876]
[1725267398095,0.25641703,58152.0,58151.0,0.06044876]
[1725267398294,0.67000711,58152.0,58151.0,0.00025776]
[1725267398495,0.49841399,58152.0,58151.0,0.00025776]
[1725267401298,0.49841399,58152.0,58146.0,0.060196]
[1725267401511,0.2516135,58147.0,58146.0,0.060196]
[1725267401807,0.30480358,58147.0,58146.0,0.060196]
[1725267402211,0.13319418,58147.0,58146.0,0.060196]
[1725267403799,0.0804,58147.0,58146.0,0.060196]
[1725267405900,0.0804,58147.0,58144.0,0.1273]
[1725267406205,0.0004,58145.0,58144.0,0.1273]
[1725267408314,0.0004,58145.0,58142.0,0.0602]
[1725267408510,0.0004,58145.0,58134.0,0.126]
[1725267408511,0.060203,58139.0,58134.0,0.126]
[1725267408710,0.08,58135.0,58134.0,0.126]
[1725267412913,0.08435001,58135.0,58134.0,0.126]
[1725267416219,0.00435001,58135.0,58134.0,1.24204]
[1725267416421,0.0004,58143.0,58142.0,0.0602]
[1725267416619,0.0004,58143.0,58142.0,0.1402]
[1725267416924,0.0004,58143.0,58142.0,0.0602]
[1725267417313,0.00476175,58143.0,58142.0,0.0602]
[1725267417514,0.0004,58143.0,58142.0,0.0602]
[1725267418938,0.0004,58143.0,58142.0,0.65616]
[1725267419118,0.05319391,58143.0,58142.0,0.65616]
[1725267419828,0.0004,58143.0,58142.0,1.25616]
[1725267420128,0.18908755,58143.0,58142.0,1.31616]
[1725267420319,0.05319367,58143.0,58142.0,1.31616]
[1725267420725,0.05319044,58143.0,58142.0,1.55616]
[1725267422830,0.00025776,58151.0,58147.0,0.060195]
[1725267423034,0.00025776,58151.0,58150.0,0.5008]
[1725267423330,0.05303792,58151.0,58150.0,0.5008]
[1725267423632,0.05303792,58151.0,58150.0,1.61672]
[1725267423830,0.05303792,58151.0,58150.0,1.676912]
[1725267424324,0.05303615,58151.0,58150.0,1.676912]
[1725267424539,1.5e-07,58151.0,58150.0,1.737104]
[1725267425214,0.00438145,58156.0,58155.0,0.060187]
[1725267425416,0.3608,58167.0,58166.0,0.060175]
[1725267425629,0.3651538,58167.0,58166.0,0.060175]
[1725267428132,0.0043538,58167.0,58166.0,0.060175]
[1725267428337,0.3608,58169.0,58167.0,0.060174]
[1725267428723,0.3608,58169.0,58162.0,0.2781]
[1725267428724,0.3608,58169.0,58168.0,0.060173]
[1725267431938,0.3608,58169.0,58163.0,0.060178]
[1725267432235,0.0004,58164.0,58163.0,0.060178]
[1725267434133,0.11484599,58164.0,58163.0,0.060178]
[1725267435624,0.05317676,58164.0,58163.0,0.060178]
[1725267435825,0.05770928,58164.0,58163.0,0.060178]
[1725267436335,0.05770928,58164.0,58161.0,0.00025799]
[1725267436528,0.0004,58162.0,58161.0,0.00025799]
[1725267436731,0.05317676,58162.0,58161.0,0.00025799]
[1725267438242,0.06171285,58162.0,58161.0,0.00025799]
[1725267439238,0.060184,58157.0,58149.0,0.3608]
[1725267439433,0.0004,58150.0,58149.0,0.3608]
[1725267439637,0.05317676,58150.0,58149.0,0.3608]
[1725267441446,0.11484599,58150.0,58149.0,0.3608]
[1725267441742,0.05317676,58150.0,58149.0,0.3608]
[1725267441943,0.0004,58150.0,58149.0,0.3608]
[1725267444141,0.060592,58150.0,58144.0,0.00017254]
[1725267444346,0.0004,58145.0,58144.0,0.00017254]
[1725267446351,0.060597,58145.0,58144.0,0.00017254]
[1725267447642,0.06495538,58145.0,58144.0,0.00017254]
[1725267449033,0.06495538,58145.0,58134.0,0.4644]
[1725267449034,0.060203,58139.0,58134.0,0.3245]
[1725267449234,0.0004,58135.0,58134.0,0.3245]
[1725267452648,0.0004,58135.0,58132.0,0.06021]
[1725267452845,0.0004,58133.0,58132.0,0.06021]
[1725267454245,0.0004,58133.0,58132.0,0.19511]
[1725267456245,0.0004,58133.0,58132.0,1.31119]
[1725267460143,0.0004,58133.0,58132.0,0.71119]
[1725267460549,0.0004,58133.0,58132.0,0.19511]
[1725267465355,0.0004,58133.0,58131.0,0.3608]
[1725267465554,0.0004,58132.0,58131.0,0.3608]
[1725267466257,0.0004,58132.0,58131.0,0.421011]
[1725267471755,0.0004,58132.0,58131.0,0.3608]
[1725267471955,0.0804,58132.0,58131.0,0.3608]
[1725267472160,0.13320688,58132.0,58131.0,0.3608]
[1725267473056,0.49400688,58132.0,58127.0,0.060215]
[1725267473354,0.05280688,58131.0,58127.0,0.060215]
[1725267473659,0.50290443,58132.0,58127.0,0.060215]
[1725267473660,0.0004,58128.0,58127.0,0.060215]
[1725267473856,0.05320688,58128.0,58127.0,0.060215]
[1725267475963,0.05769249,58128.0,58127.0,0.060215]
[1725267476153,0.05769249,58128.0,58127.0,0.421015]
[1725267476349,0.05769228,58128.0,58127.0,0.421015]
[1725267479055,0.00488561,58128.0,58127.0,0.421015]
[1725267481662,0.08488561,58128.0,58127.0,0.060215]
[1725267482561,0.00488561,58128.0,58127.0,0.060215]
[1725267484661,0.00488561,58128.0,58127.0,0.501015]
[1725267484965,0.0004,58128.0,58127.0,0.501015]
[1725267485459,0.0004,58128.0,58127.0,0.611359]
[1725267485768,0.0004,58128.0,58127.0,0.56123]
[1725267489354,2e-08,58131.0,58130.0,0.120424]
[1725267489559,0.1413,58147.0,58139.0,0.060203]
[1725267489761,0.1413,58147.0,58139.0,0.501003]
[1725267489964,0.1413,58147.0,58139.0,0.741403]
[1725267490166,0.1413,58147.0,58139.0,0.501003]
[1725267490963,0.00440949,58142.0,58139.0,0.501003]
[1725267492060,0.00440949,58142.0,58139.0,0.421003]
[1725267494367,0.11473783,58140.0,58139.0,0.421003]
[1725267496957,0.11473783,58140.0,58139.0,0.060203]
[1725267497268,0.11473783,58140.0,58139.0,0.421003]
[1725267500569,0.33770091,58140.0,58139.0,0.421003]
[1725267501964,0.33770091,58140.0,58139.0,0.561003]
[1725267502165,0.05305036,58140.0,58139.0,0.561003]
[1725267508774,0.05305036,58140.0,58139.0,0.200203]
[1725267509001,0.05305036,58140.0,58139.0,0.561003]
[1725267509272,0.00025799,58140.0,58139.0,0.561003]
[1725267510478,0.00025799,58140.0,58139.0,0.421003]
[1725267511075,0.14025799,58140.0,58134.0,0.421008]
[1725267511272,0.14,58136.0,58134.0,0.421008]
[1725267511483,0.1425,58135.0,58134.0,0.421008]
[1725267511683,0.1425,58135.0,58134.0,0.060208]
[1725267514378,0.14701422,58135.0,58134.0,0.060208]
[1725267514788,0.00491422,58135.0,58134.0,0.060208]
[1725267519390,0.00491422,58135.0,58134.0,0.140208]
[1725267522678,0.00491422,58135.0,58134.0,0.060208]
[1725267524390,0.05771755,58135.0,58134.0,0.060208]
[1725267528783,0.05771755,58135.0,58134.0,0.300208]
[1725267529183,0.05771755,58135.0,58134.0,0.060208]
[1725267529785,0.05771755,58135.0,58134.0,0.300208]
[1725267530800,0.05771755,58135.0,58134.0,0.060208]
[1725267531383,0.00491422,58135.0,58134.0,0.060208]
[1725267546709,0.11941548,58135.0,58134.0,0.060208]
[1725267549308,0.11941548,58135.0,58132.0,0.3608]
[1725267549505,0.11450126,58134.0,58132.0,0.3608]
[1725267549703,0.11490126,58133.0,58132.0,0.3608]
[1725267550095,0.19490126,58133.0,58130.0,0.0004]
[1725267550295,0.421411,58131.0,58130.0,0.0004]
[1725267550506,0.53591226,58131.0,58130.0,0.0004]
[1725267550708,0.75961565,58131.0,58130.0,0.0004]
[1725267551210,0.62448677,58131.0,58130.0,0.0004]
[1725267552908,0.61591226,58131.0,58130.0,0.0004]
[1725267554116,0.62445263,58131.0,58130.0,0.0004]
[1725267554500,0.50995137,58131.0,58130.0,0.0004]
[1725267556812,0.501411,58131.0,58130.0,0.0004]
[1725267557402,0.50996772,58131.0,58130.0,0.0004]
[1725267559104,0.0004,58131.0,58130.0,0.0004]
[1725267560699,0.3612,58131.0,58130.0,0.0004]
[1725267561713,0.41401173,58131.0,58130.0,0.0004]
[1725267568722,0.47572182,58131.0,58130.0,0.0004]
[1725267569211,0.47572196,58131.0,58130.0,0.0004]
[1725267569610,0.3612,58131.0,58130.0,0.0004]
[1725267572524,0.4412,58131.0,58130.0,0.0004]
[1725267576731,0.49401172,58131.0,58130.0,0.0004]
[1725267577619,0.41401172,58131.0,58130.0,0.0004]
[1725267577829,0.49401172,58131.0,58130.0,0.0004]
[1725267584937,0.4412,58131.0,58130.0,0.0004]
[1725267586227,1.61009579,58131.0,58109.0,0.060234]
[1725267586429,0.08,58112.0,58111.0,0.1338]
[1725267591443,0.08357382,58112.0,58111.0,0.1338]
[1725267591841,0.49719869,58112.0,58101.0,0.6853]
[1725267592040,0.08,58104.0,58102.0,0.414]
[1725267592341,0.05282487,58103.0,58102.0,0.414]
[1725267593930,0.05282487,58103.0,58102.0,0.2803]
[1725267596633,0.05644523,58103.0,58102.0,0.2803]
[1725267597049,0.05644523,58103.0,58102.0,0.1448]
[1725267597942,0.00362036,58103.0,58102.0,0.1448]
[1725267598150,0.05283325,58103.0,58102.0,0.1448]
[1725267599549,0.05283325,58103.0,58101.0,0.3608]
[1725267599735,0.140241,58102.0,58101.0,0.3608]
[1725267599937,0.4412,58102.0,58096.0,0.1355]
[1725267600143,0.08,58097.0,58096.0,0.1355]
[1725267600346,0.0804,58097.0,58096.0,0.1355]
[1725267600648,0.08,58097.0,58096.0,0.1355]
[1725267601441,0.0004,58102.0,58100.0,0.060243]
[1725267601743,0.0004,58102.0,58101.0,0.0004]
[1725267602453,0.0004,58102.0,58101.0,0.060642]
[1725267603245,0.0004,58102.0,58101.0,0.0004]
[1725267605545,0.3612,58102.0,58101.0,0.0004]
[1725267606144,0.0057523,58107.0,58101.0,1.19672]
[1725267606348,0.0037123,58107.0,58106.0,0.140237]
[1725267606564,0.00025799,58112.0,58111.0,0.060232]
[1725267606751,0.08025799,58112.0,58110.0,0.3608]
[1725267606946,0.08,58111.0,58106.0,0.7663]
[1725267607147,0.08,58108.0,58106.0,0.7663]
[1725267607446,0.08,58110.0,58107.0,0.060236]
[1725267607751,0.00392589,58112.0,58109.0,0.0004]
[1725267608046,0.00392589,58112.0,58111.0,0.0004]
[1725267608649,0.00392589,58112.0,58106.0,0.1374]
[1725267608650,0.06415689,58112.0,58106.0,0.0004]
[1725267608852,0.4412,58107.0,58106.0,0.0004]
[1725267610152,0.4412,58107.0,58100.0,0.060243]
[1725267610451,0.0004,58101.0,58100.0,0.060243]
[1725267613652,0.0004,58101.0,58097.0,0.1441]
[1725267613952,0.3608,58102.0,58097.0,0.1441]
[1725267613953,0.0004,58098.0,58097.0,0.204347]
[1725267614948,0.05323372,58098.0,58097.0,0.204347]
[1725267618750,0.11496951,58098.0,58097.0,0.204347]
[1725267619753,0.11496778,58098.0,58097.0,0.204347]
[1725267621568,0.11496778,58098.0,58097.0,0.344347]
[1725267621953,0.0004,58098.0,58097.0,0.344347]
[1725267622962,0.0004,58098.0,58097.0,1.88895827]
[1725267623146,0.0004,58098.0,58097.0,1.821507]
[1725267623349,0.00356976,58102.0,58101.0,0.060242]
[1725267623559,0.4026,58120.0,58101.0,0.20859609]
[1725267623766,0.4026,58120.0,58110.0,0.060232]
[1725267623952,0.4026,58120.0,58111.0,0.0004]
[1725267624153,0.4026,58120.0,58110.0,0.060232]
[1725267624353,0.4026,58120.0,58111.0,0.060232]
[1725267624549,0.14,58116.0,58111.0,0.060232]
[1725267625252,0.14025799,58112.0,58107.0,0.1377]
[1725267625448,0.14,58108.0,58102.0,0.05114481]
[1725267625649,0.14,58103.0,58101.0,0.0004]
[1725267625849,0.1434,58102.0,58101.0,0.0004]
[1725267626661,0.15218001,58102.0,58101.0,0.0004]
[1725267627153,0.1434,58102.0,58101.0,0.0004]
[1725267630866,0.14701093,58102.0,58101.0,0.0004]
[1725267631052,0.15566583,58102.0,58101.0,0.0004]
[1725267632872,0.51646583,58102.0,58101.0,0.0004]
[1725267634174,0.50781093,58102.0,58101.0,0.0004]
[1725267634563,0.00361093,58102.0,58101.0,0.200642]
[1725267634763,0.3608,58108.0,58106.0,0.060237]
[1725267634964,0.3608,58108.0,58101.0,0.1404]
[1725267634965,0.3608,58108.0,58107.0,0.060636]
[1725267635361,0.36435917,58108.0,58107.0,0.060636]
[1725267636861,0.41718873,58108.0,58107.0,0.060636]
[1725267637359,0.05638873,58108.0,58107.0,0.060636]
[1725267640975,0.05282956,58108.0,58107.0,1.176916]
[1725267643177,0.00358001,58110.0,58109.0,0.060234]
[1725267643478,0.00025799,58112.0,58107.0,1.11668]
[1725267643479,0.0528203,58111.0,58107.0,0.51756]
[1725267643681,0.00025799,58112.0,58110.0,0.5008]
[1725267643979,0.00025799,58112.0,58111.0,0.1447]
[1725267644194,0.05307781,58112.0,58111.0,0.2839]
[1725267644881,0.05307781,58112.0,58111.0,0.344132]
[1725267644882,0.00025799,58112.0,58111.0,0.344132]
[1725267645296,0.00025799,58112.0,58111.0,1.460372]
[1725267645499,0.14,58129.0,58125.0,0.060218]
[1725267645686,0.33451753,58126.0,58114.0,0.3245]
[1725267645887,0.33451753,58126.0,58125.0,0.0004]
[1725267645888,0.1417,58126.0,58125.0,0.0004]
[1725267646095,0.19807994,58126.0,58125.0,0.0004]
[1725267646287,1.31419994,58126.0,58125.0,0.0004]
[1725267646608,1.32819994,58126.0,58125.0,0.0014]
[1725267647193,1.46819994,58126.0,58125.0,0.0014]
[1725267647393,1.46819994,58126.0,58120.0,0.00025799]
[1725267647595,0.5012,58121.0,58120.0,0.00025799]
[1725267647786,0.55401847,58121.0,58120.0,0.00025799]
[1725267648602,0.55401847,58121.0,58120.0,0.00125799]
[1725267649306,0.5012,58121.0,58120.0,0.00025799]
[1725267649600,0.5152,58121.0,58120.0,0.00125799]
[1725267649795,0.56802088,58121.0,58120.0,0.00125799]
[1725267652104,0.62974158,58121.0,58120.0,0.00125799]
[1725267652807,0.6297417,58121.0,58120.0,0.00125799]
[1725267653009,0.2689417,58121.0,58120.0,0.00125799]
[1725267653305,0.6297417,58121.0,58120.0,0.00125799]
[1725267656004,0.5697417,58121.0,58120.0,0.00125799]
[1725267657609,0.56974154,58121.0,58120.0,0.00125799]
[1725267659905,0.4552,58121.0,58120.0,0.00125799]
[1725267661002,0.3752,58121.0,58120.0,0.06148099]
[1725267663703,0.3612,58121.0,58120.0,0.06048099]
[1725267663910,0.4552,58121.0,58120.0,0.06148099]
[1725267664621,0.4412,58121.0,58120.0,0.06048099]
[1725267664909,0.4542,58121.0,58120.0,0.06148099]
[1725267666616,0.4552,58121.0,58120.0,0.06148099]
[1725267667115,0.56973975,58121.0,58120.0,0.06148099]
[1725267667907,0.48973975,58121.0,58120.0,0.06148099]
[1725267669810,0.12893975,58121.0,58120.0,0.06148099]
[1725267670415,0.06722,58121.0,58120.0,1.25764099]
[1725267670924,0.06722,58121.0,58120.0,1.49764099]
[1725267671217,0.42802,58121.0,58120.0,0.06148099]
[1725267671515,0.50802,58121.0,58120.0,0.06148099]
[1725267672024,0.56973975,58121.0,58120.0,0.06148099]
[1725267672315,0.12893975,58121.0,58120.0,0.06148099]
[1725267672520,0.06722,58121.0,58120.0,0.06148099]
[1725267672713,0.14722,58121.0,58120.0,0.06148099]
[1725267672918,0.56973975,58121.0,58120.0,0.00125799]
[1725267673832,0.48973975,58121.0,58120.0,0.00125799]
[1725267675127,0.0144,58121.0,58120.0,0.00125799]
[1725267677312,0.0144,58121.0,58120.0,0.06148099]
[1725267679732,0.0134,58121.0,58120.0,0.06148099]
[1725267679933,0.0134,58121.0,58120.0,0.42228099]
[1725267681432,0.0134,58121.0,58120.0,0.06148099]
[1725267682920,0.0004,58121.0,58120.0,0.06048099]
[1725267683126,0.0134,58121.0,58120.0,0.06148099]
[1725267685633,0.3742,58121.0,58120.0,0.00125799]
[1725267685828,0.89036,58121.0,58106.0,0.060236]
[1725267686135,0.89036,58121.0,58103.0,0.3608]
[1725267686136,0.4408,58110.0,58107.0,0.060236]
[1725267686630,0.3608,58110.0,58106.0,0.08]
[1725267686840,0.3608,58110.0,58108.0,0.060235]
[1725267687821,0.3658,58110.0,58108.0,0.060235]
[1725267689326,0.3678,58110.0,58108.0,0.061235]
[1725267689526,0.3678,58110.0,58108.0,0.001]
[1725267689926,0.05282655,58109.0,58108.0,0.001]
[1725267692224,0.05982655,58109.0,58108.0,0.001]
[1725267693540,0.05982686,58109.0,58108.0,0.001]
[1725267694937,0.05982686,58109.0,58108.0,0.061235]
[1725267697035,0.007,58109.0,58108.0,0.061235]
[1725267697624,0.007,58109.0,58108.0,0.422035]
[1725267698339,0.007,58109.0,58108.0,0.938315]
[1725267700840,0.3608,58125.0,58124.0,0.060219]
[1725267701035,0.36438971,58125.0,58124.0,0.060219]
[1725267701341,0.36438971,58125.0,58124.0,0.300619]
[1725267701342,0.00358971,58125.0,58124.0,0.300619]
[1725267701641,0.00841773,58131.0,58126.0,0.060217]
[1725267701848,0.01364359,58130.0,58129.0,0.0004]
[1725267702935,0.01364359,58130.0,58129.0,0.060613]
[1725267703134,0.01364359,58130.0,58129.0,0.061613]
[1725267703339,0.02764359,58130.0,58129.0,0.061613]
[1725267704836,0.01364359,58130.0,58129.0,0.060613]
[1725267705037,0.06645284,58130.0,58129.0,0.061613]
[1725267706139,0.06645284,58130.0,58129.0,0.201613]
[1725267706337,0.06645284,58130.0,58129.0,0.061613]
[1725267707444,0.06645284,58130.0,58129.0,0.201613]
[1725267707942,0.06645284,58130.0,58129.0,0.200613]
[1725267708138,0.07145284,58130.0,58129.0,0.201613]
[1725267708736,0.06645284,58130.0,58129.0,0.561413]
[1725267709044,0.07145284,58130.0,58129.0,0.562413]
[1725267711439,0.07245284,58130.0,58129.0,0.562413]
[1725267712141,0.01364359,58130.0,58129.0,0.562413]
[1725267712344,0.01964359,58130.0,58129.0,0.562413]
[1725267713947,0.016,58130.0,58129.0,0.562413]
[1725267714648,0.00025799,58134.0,58133.0,0.060209]
[1725267714840,0.060193,58149.0,58141.0,0.0602]
[1725267715040,0.060193,58149.0,58133.0,0.14]
[1725267715041,0.06377016,58149.0,58142.0,0.060199]
[1725267715543,0.06377016,58149.0,58140.0,0.14]
[1725267715544,0.00357716,58149.0,58145.0,0.060197]
[1725267715747,0.49588001,58151.0,58145.0,0.060197]
[1725267715945,0.5008,58146.0,58141.0,0.00125799]
[1725267716447,0.0004,58142.0,58141.0,0.06145899]
[1725267716646,0.0004,58142.0,58141.0,0.06045899]
[1725267716839,0.3608,58146.0,58145.0,0.060797]
[1725267717044,0.3608,58146.0,58145.0,0.201197]
[1725267717242,0.3608,58146.0,58145.0,0.717157]
[1725267718345,0.3608,58146.0,58145.0,0.716557]
[1725267718938,0.0036753,58151.0,58150.0,0.060192]
[1725267719145,0.00025799,58153.0,58150.0,0.200592]
[1725267719351,0.00025799,58153.0,58152.0,0.0004]
[1725267719546,0.00025799,58153.0,58151.0,0.060191]
[1725267720350,0.00025799,58153.0,58152.0,0.06019]
[1725267720851,0.00390205,58153.0,58152.0,0.06019]
[1725267721052,0.00025799,58153.0,58152.0,0.06019]
[1725267723057,0.00025799,58153.0,58152.0,0.06119]
[1725267723544,0.00025799,58153.0,58152.0,0.57707]
[1725267723745,0.00025799,58153.0,58152.0,0.57607]
[1725267723945,0.00025799,58153.0,58152.0,0.57707]
[1725267724549,0.00025799,58153.0,58152.0,0.93787]
[1725267726161,0.00025799,58153.0,58152.0,0.42199]
[1725267727257,0.11471469,58153.0,58152.0,0.42199]
[1725267727557,0.11471469,58153.0,58152.0,0.06119]
[1725267728449,0.11471469,58153.0,58152.0,0.06019]
[1725267728648,0.11471469,58153.0,58152.0,0.06119]
[1725267728844,0.11471469,58153.0,58152.0,0.001]
[1725267729057,0.32528299,58153.0,58152.0,0.00090001]
[1725267729255,0.32529445,58153.0,58150.0,0.0004]
[1725267729552,0.0004,58151.0,58150.0,0.0004]
[1725267729758,0.18543646,58151.0,58150.0,0.0004]
[1725267729950,0.32523646,58151.0,58150.0,0.0004]
[1725267730153,0.32423646,58151.0,58150.0,0.0004]
[1725267731052,1.44015646,58151.0,58150.0,0.0004]
[1725267731449,1.36958816,58151.0,58150.0,0.0004]
[1725267731850,0.25366816,58151.0,58150.0,0.0014]
[1725267732050,0.85366816,58151.0,58150.0,0.0014]
[1725267732554,0.25366816,58151.0,58150.0,0.0004]
[1725267732759,0.77315983,58151.0,58150.0,0.0014]
[1725267734254,0.25723983,58151.0,58150.0,0.0014]
[1725267735155,0.50417167,58151.0,58150.0,0.0014]
[1725267736063,0.060192,58150.0,58141.0,0.00025799]
[1725267736260,0.3608,58142.0,58141.0,0.00025799]
[1725267737160,0.3612,58142.0,58141.0,0.00025799]
[1725267737461,0.3612,58142.0,58129.0,0.24]
[1725267737766,0.0004,58130.0,58129.0,0.24]
[1725267738150,0.3602,58134.0,58129.0,0.24]
[1725267739562,0.002,58130.0,58129.0,0.24]
[1725267740173,0.3628,58130.0,58126.0,0.00025799]
[1725267740351,0.5008,58127.0,58126.0,0.00025799]
[1725267740762,1.61692,58127.0,58126.0,0.00025799]
[1725267741366,1.61592,58127.0,58126.0,0.00025799]